Cogmind - Beta 13 @@@ ROGUE MODE // 2024.04.17 @ 02:01:33 Player: Powerlich_soros Result: Destroyed by Y-45 Defender with Heavy Assault Rifle Performance ------------- Evolutions (2) 1000 Regions Visited (4) 800 Robots Destroyed (35) 175 Value Destroyed (1041) 1041 Prototype IDs (3) 60 Alien Tech Used (0) 0 Bonus (0) 0 TOTAL SCORE: 3076 Bonus ------- None Cogmind --------- Core Integrity 0/550 Matter 300/300 Energy 100/100 System Corruption 1% Temperature Cool (9) Movement Rolling (90) Location -8/Materials Parts ------- > --- POWER (1) -------- (None) > --- PROPULSION (2) --- Wheel Compact Wheel > --- UTILITY (5) ------ Melee Analysis Suite > --- WEAPON (3) ------- (None) > --- INVENTORY (5) ---- Ion Engine Aluminum Leg EM Pulse Gun Light Assault Rifle Datajack Peak State ------------ > --- POWER ------------ Reinforced Ion Engine > --- PROPULSION ------- Aluminum Leg Carbon-fiber Leg > --- UTILITY ---------- Small Storage Unit Melee Analysis Suite Actuator Array > --- WEAPON ----------- Hammer Great Maul > --- INVENTORY -------- Ion Engine Ion Engine EM Pulse Gun Light Assault Rifle Datajack [Rating: 17] Favorites ----------- Power Ion Engine Engine Ion Engine Propulsion Wheel Leg Carbon-fiber Leg Wheel Wheel Utility Small Storage Unit Device Actuator Array Storage Small Storage Unit Processor Targeting Computer Weapon Great Maul Energy Gun EM Pulse Gun Impact Weapon Great Maul Build | -11 -10 -10 -9 -8 ------- Run | Yrd Mat Min Mat Mat Slots Evolved 4 | . . . 2 2 Power . | . . . . . Propulsion . | . . . . . Utility 3 | . . . 1 2 Weapon 1 | . . . 1 . Parts Attached 22 | 6 1 1 4 10 Power 2 | 1 . . . 1 Engine 2 | 1 . . . 1 Core . | . . . . . Reactor . | . . . . . Propulsion 8 | 2 . . 2 4 Treads . | . . . . . Leg 2 | . . . . 2 Wheel 6 | 2 . . 2 2 Hover . | . . . . . Flight . | . . . . . Utility 8 | 1 1 . 2 4 Device 5 | . . . 2 3 Storage 1 | 1 . . . . Processor 2 | . 1 . . 1 Hackware . | . . . . . Protection . | . . . . . Artifact . | . . . . . Weapon 4 | 2 . 1 . 1 Energy Gun 2 | 2 . . . . Energy Cannon . | . . . . . Ballistic Gun . | . . . . . Ballistic Cannon . | . . . . . Launcher . | . . . . . Special Weapon . | . . . . . Impact Weapon 2 | . . 1 . 1 Slashing Weapon . | . . . . . Piercing Weapon . | . . . . . Special Melee Weapon . | . . . . . Unidentified Prototypes . | . . . . . Parts Lost 13 | . . . 2 11 Power 1 | . . . . 1 Propulsion 3 | . . . 1 2 Utility 6 | . . . . 6 Weapon 3 | . . . 1 2 Highest Loss Streak 6 | . . . 2 6 To Critical Strikes . | . . . . . Average Slot Usage (%) 79 | . 97 100 84 62 Engine 11 | . 14 14 11 8 Leg 2 | . . . . 4 Wheel 17 | . 28 28 22 7 Device 8 | . . . 13 13 Storage 11 | . 14 14 11 8 Processor 8 | . 11 14 5 5 Energy Gun 8 | . 28 15 11 . Impact Weapon 11 | . . 12 11 13 Naked Turns . | . . . . . Heaviest Build 28 | 14 14 16 19 28 Greatest Support 26 | 20 20 20 20 26 Greatest Overweight (x) 9 | . . . . 9 Average Overweight (x) . | . . . . 1 Largest Inventory Capacity 8 | 8 8 8 8 8 Average Capacity 7 | 7 8 8 8 7 Most Carried 7 | 2 4 6 6 7 Average Carried 5 | . 3 5 5 5 Final Capacity 8 | 8 8 8 8 5 Final Carried 6 | 2 4 6 5 5 Class Distribution -------------------- 76% | Mutant 23% | Gladiator Dominant Class ---------------- Mutant | -10/Materials Mutant | -10/Mines Mutant | -9/Materials Gladiator | -8/Materials Resources | -11 -10 -10 -9 -8 ----------- Run | Yrd Mat Min Mat Mat Matter Collected 406 | 200 66 30 30 80 Remotely . | . . . . . Salvage Created 1123 | . 118 133 77 795 Parts 37 | . 5 9 5 18 Haulers Intercepted 1 | . 1 . . . Recyclers Shooed . | . . . . . Parts Field Recycled . | . . . . . Retrieved Matter . | . . . . . Parts Self-Destructed . | . . . . . Prevented . | . . . . . Kills | -11 -10 -10 -9 -8 ------- Run | Yrd Mat Min Mat Mat Combat Hostiles Destroyed 28 | . 1 6 2 19 Melee 11 | . . 4 1 6 Guns 1 | . 1 . . . Classes Destroyed 9 | . 3 1 1 4 Worker 1 | . . . . 1 Hauler 1 | . 1 . . . Recycler 1 | . . . . 1 Operator 2 | . . . . 2 Watcher 2 | . 1 . . 1 Swarmer 8 | . . 3 . 5 Grunt 16 | . 1 3 1 11 Brawler 1 | . . . . 1 Sentry 3 | . . . 1 2 Best Kill Streak 7 | . 2 3 1 7 Combat Bots Only 6 | . 1 3 1 6 Max Kills in Single Turn 1 | . 1 1 1 1 Gunslinging . | . . . . . Exploded . | . . . . . Melee 1 | . . 1 1 1 Uniques/NPCs Destroyed . | . . . . . Combat | -11 -10 -10 -9 -8 -------- Run | Yrd Mat Min Mat Mat Hostile Shots Fired 194 | . 2 15 13 164 Missed 52 | . 2 5 . 45 Damage Taken 1744 | . . 94 172 1478 Core 619 | . . 19 38 562 Absorbed by Shields 358 | . . . 67 291 Core Remaining (%) 94 | 100 . 92 90 . Volleys Fired 2 | . 2 . . . Largest 2 | . 2 . . . Hottest 80 | . 80 . . . Shots Fired 4 | . 4 . . . Gun 4 | . 4 . . . Cannon . | . . . . . Launcher . | . . . . . Special . | . . . . . Kinetic . | . . . . . Thermal . | . . . . . Explosive . | . . . . . Electromagnetic 4 | . 4 . . . Robot Hit Streak 1 | . 1 . . . Robot Miss Streak 1 | . 1 . . . Penetration Max . | . . . . . Secondary Targets . | . . . . . Shots Hit Robots 73 | . 2 9 2 60 Core Hits 14 | . 3 3 . 8 Critical Kills 1 | . . . . 1 Critical Parts Destroyed 13 | . . 1 2 10 Critical Strikes 14 | . . 1 2 11 Smash 14 | . . 1 2 11 Melee Attacks 109 | . . 14 8 87 Impact 109 | . . 14 8 87 Slashing . | . . . . . Piercing . | . . . . . Sneak Attacks 4 | . . . . 4 Combat Hostiles . | . . . . . Follow-up Attacks 4 | . . . . 4 Damage Inflicted 2967 | . 47 403 82 2435 Guns 47 | . 47 . . . Cannons . | . . . . . Explosions . | . . . . . Melee 2913 | . . 403 82 2428 Ramming 7 | . . . . 7 Kinetic . | . . . . . Thermal . | . . . . . Explosive . | . . . . . Electromagnetic 47 | . 47 . . . Impact 2913 | . . 403 82 2428 Slashing . | . . . . . Piercing . | . . . . . Highest Corruption 2 | . 2 2 . 1 Average Corruption 1 | . 2 2 . 1 Corruption Purged . | . . . . . Corruption Blocked . | . . . . . Effects 8 | . . 8 . . Message Errors 2 | . . 2 . . Matter Fused 2 | . . 2 . . Energy Discharges 1 | . . 1 . . Data Loss (minor) 1 | . . 1 . . Data Loss (major) 1 | . . 1 . . Alerts 1 | . . 1 . . Overload Shots . | . . . . . Overflow Damage 923 | . . 86 82 755 Projectiles . | . . . . . Explosions . | . . . . . Melee 923 | . . 86 82 755 Knockbacks 12 | . . . . 12 Impact 11 | . . . . 11 Kinetic . | . . . . . Secondary 1 | . . . . 1 Self-Inflicted Damage 3 | . . . . 3 Shots . | . . . . . Rammed 5 | . . . . 5 Targets Rammed 5 | . . . . 5 Kicked . | . . . . . Crushed . | . . . . . Highest Temperature 18 | . 18 . . 7 Average Temperature 10 | . 12 . . 7 Received Heat Transfer 678 | . . 27 46 605 Siege Activations . | . . . . . Robots Corrupted 1 | . 1 . . . Combat Hostiles . | . . . . . Parts Fried 20 | . 2 2 . 16 Impact Corruptions 33 | . . 4 2 27 Robots Melted . | . . . . . Combat Hostiles . | . . . . . Parts Melted . | . . . . . Heat Transferred . | . . . . . Parts Sabotaged . | . . . . . Parts Stolen . | . . . . . Parts Stripped . | . . . . . Power Chain Reactions . | . . . . . Alert | -11 -10 -10 -9 -8 ------- Run | Yrd Mat Min Mat Mat Peak Influence 399 | . 96 204 82 399 Initial 37 | . . 37 1 29 Average 129 | . 70 98 16 201 Maximum Alert Level 1 | . . 1 . 1 Low Security (%) 76 | 100 100 86 100 56 Level 1 23 | . . 13 . 43 Level 2 . | . . . . . Level 3 . | . . . . . Level 4 . | . . . . . Level 5 . | . . . . . High Security . | . . . . . Max Security . | . . . . . Squads Dispatched 9 | . 2 1 2 4 Investigation 6 | . 2 1 2 1 Extermination . | . . . . . Reinforcement 3 | . . . . 3 Assault . | . . . . . Garrison . | . . . . . Intercept . | . . . . . Searches Triggered . | . . . . . Construction Impeded . | . . . . . Haulers Reinforced . | . . . . . Active Scanning Responses . | . . . . . Cargo Convoy Interrupts . | . . . . . Stealth | -11 -10 -10 -9 -8 --------- Run | Yrd Mat Min Mat Mat Distress Signals 1 | . . . . 1 Communications Jammed . | . . . . . Distress Signals . | . . . . . Times Spotted 45 | . 4 6 4 31 Peak Tracking Total 7 | . 1 3 3 7 Tactical Retreats 3 | . . . . 3 Traps | -11 -10 -10 -9 -8 ------- Run | Yrd Mat Min Mat Mat Traps Triggered 5 | . 2 . 3 . Indirectly . | . . . . . Trap Hack Attempts . | . . . . . Triggered . | . . . . . Disarmed . | . . . . . Reprogrammed . | . . . . . Reused . | . . . . . Traps Extracted . | . . . . . Installed . | . . . . . Triggered . | . . . . . Machines | -11 -10 -10 -9 -8 ---------- Run | Yrd Mat Min Mat Mat Machines Disabled . | . . . . . Max in Single Turn . | . . . . . Machines Repaired . | . . . . . Machines Dismantled . | . . . . . Machines Sabotaged . | . . . . . Overloaded Fab Kills . | . . . . . Hacking | -11 -10 -10 -9 -8 --------- Run | Yrd Mat Min Mat Mat Machines Accessed 11 | . 4 1 4 2 Terminals 9 | . 4 . 4 1 Fabricators . | . . . . . Repair Stations . | . . . . . Recycling Units 1 | . . . . 1 Scanalyzers . | . . . . . Garrison Access . | . . . . . Total Hacks 42 | . 24 1 10 7 Successful 17 | . 10 1 2 4 Failed 25 | . 14 . 8 3 Catastrophic 3 | . 1 . 1 1 Database Lockouts . | . . . . . Manual 9 | . 4 . 4 1 Terminals 36 | . 24 . 10 2 Fabricators . | . . . . . Repair Stations . | . . . . . Recycling Units 5 | . . . . 5 Scanalyzers . | . . . . . Garrison Access . | . . . . . Terminal Hacks 15 | . 10 1 2 2 Record 1 | . 1 . . . Robot Analysis 1 | . 1 . . . Prototype ID Bank 1 | . 1 . . . Open Door 1 | . . 1 . . Terminal Index 1 | . 1 . . . Fabricator Index 1 | . 1 . . . Alert Level 3 | . 2 . . 1 Hauler Manifests 1 | . 1 . . . Zone Layout 5 | . 2 . 2 1 Fabricator Hacks . | . . . . . Repair Station Hacks . | . . . . . Recycling Unit Hacks 2 | . . . . 2 Report Inventory 1 | . . . . 1 Retrieve Components 1 | . . . . 1 Scanalyzer . | . . . . . Garrison Access Hacks . | . . . . . Unauthorized Hacks . | . . . . . Terminals . | . . . . . Fabricators . | . . . . . Repair Stations . | . . . . . Recycling Units . | . . . . . Scanalyzers . | . . . . . Garrison Access . | . . . . . Data Cores Recovered . | . . . . . Used . | . . . . . Hacking Detections 9 | . 4 . 4 1 Full Trace Events 4 | . 2 . 1 1 Feedback Events . | . . . . . Feedback Blocked . | . . . . . Robot Schematics Acquired . | . . . . . Robots Built . | . . . . . Authchips . | . . . . . Time . | . . . . . Total Robot Build Rating . | . . . . . Part Schematics Acquired . | . . . . . Parts Built . | . . . . . Authchips . | . . . . . Time . | . . . . . Total Part Build Rating . | . . . . . Parts Repaired . | . . . . . Time . | . . . . . Parts Recycled . | . . . . . Recycled Matter . | . . . . . Retrieved Matter . | . . . . . Retrieved Components 4 | . . . . 4 Parts Scanalyzed . | . . . . . Part Schematics Acquired . | . . . . . Parts Damaged . | . . . . . Bothacking | -11 -10 -10 -9 -8 ------------ Run | Yrd Mat Min Mat Mat Used RIF Installer . | . . . . . Robots Hacked . | . . . . . Non-combat . | . . . . . Combat . | . . . . . Robot Hacks Applied . | . . . . . Relay Couplers Released . | . . . . . Fabnet Peak Effective % . | . . . . . Robots Rewired . | . . . . . Allies Hacked . | . . . . . Hacks Repelled . | . . . . . Allies | -11 -10 -10 -9 -8 -------- Run | Yrd Mat Min Mat Mat Total Allies . | . . . . . Largest Group . | . . . . . Highest-Rated Group . | . . . . . Highest-Rated Ally . | . . . . . Total Orders . | . . . . . Ally Attacks . | . . . . . Total Damage . | . . . . . Kills . | . . . . . Allies Corrupted . | . . . . . Allies Melted . | . . . . . Intel | -11 -10 -10 -9 -8 ------- Run | Yrd Mat Min Mat Mat Robot Analysis Total 1 | . 1 . . . Derelict Logs Recovered 1 | . . 1 . . Drone Launches . | . . . . . Drone Recoveries . | . . . . . Exploration | -11 -10 -10 -9 -8 ------------- Run | Yrd Mat Min Mat Mat Turns Passed 1773 | 53 205 484 214 817 Spaces Moved 1489 | 55 244 542 231 417 Core 12 | 5 . . . 7 Treads . | . . . . . Legs 89 | . . . . 89 Wheels 1388 | 50 244 542 231 321 Hover . | . . . . . Flight . | . . . . . Fastest Speed 50 | 50 80 80 80 80 Average Speed 92 | 77 80 80 80 124 Slowest Speed 500 | 80 80 80 80 500 Overloaded Moves . | . . . . . Propulsion Burnouts . | . . . . . Robots Hopped . | . . . . . Cave-ins Triggered . | . . . . . Exploration Rate (%) 38 | 4 34 93 25 37 Regions Visited 4 Branch Regions 1 Pre-discovered Areas 1 | . . 1 . . Known Exits Taken . | . . . . . Unknown Exits Taken 4 | 1 1 1 1 . Scrap Searched 1 | . . 1 . . Spaces Dug 10 | . . 2 6 2 Terrain Destroyed 10 | . . 2 6 2 Melee 10 | . . 2 6 2 Projectile . | . . . . . AOE . | . . . . . Terrain Rammed . | . . . . . Walls Destroyed . | . . . . . Machines Disabled . | . . . . . Actions | -11 -10 -10 -9 -8 --------- Run | Yrd Mat Min Mat Mat Total 1671 | 62 249 563 243 554 Wait 43 | . 1 5 . 37 Move 1485 | 54 243 541 230 417 Hop . | . . . . . Pick Up 10 | 2 2 2 . 4 Fast Attach 13 | 6 1 . 2 4 Attach 6 | . . . 1 5 Detach 3 | . . . 1 2 Swap 3 | . . 1 1 1 Drop . | . . . . . Fire 2 | . 2 . . . Melee 101 | . . 14 8 79 Ram 5 | . . . . 5 Kick . | . . . . . Crush . | . . . . . Escape Stasis . | . . . . . Rewire . | . . . . . Trap . | . . . . . Miscellaneous . | . . . . . Route ------- -11/Scrapyard -10/Materials -10/Mines (discovered 2 exits: *Mat x2) -9/Materials (discovered 2 exits: *Mat / Min) -8/Materials History --------- Turn | Location | Event 38 | -11/Scrapyard | Discovered new exit (range 13) 54 | -11/Scrapyard | Entered Materials 213 | -10/Materials | Discovered new exit (range 15) 259 | -10/Materials | Entered Mines 281 | -10/Mines | Met a Derelict shopkeep closing up shop 311 | -10/Mines | Build established: Mutant 362 | -10/Mines | Discovered new exit (range 6) 379 | -10/Mines | Discovered new exit (range 10) 460 | -10/Mines | Learned location of Storage (-9) 516 | -10/Mines | Learned 2 Materials zone layouts 743 | -10/Mines | Entered Materials 743 | -9/Materials | Evolved 2 slots: Utility x1, Weapon x1 744 | -9/Materials | Identified exit to Mines 938 | -9/Materials | Discovered new exit (range 12) 957 | -9/Materials | Entered another Materials area 957 | -8/Materials | Evolved 2 slots: Utility x2 1533 | -8/Materials | Core integrity fell below 50% 1599 | -8/Materials | Build established: Gladiator 1749 | -8/Materials | Core integrity fell below 20% 1774 | -8/Materials | Destroyed by Y-45 Defender with Heavy Assault Rifle Last Messages --------------- 01730_ Sml. Storage Unit destroyed. 01730_ Shield Generator destroyed. 01733_ Great Maul destroyed. 01734_ K-01 Serf collects debris. 01734_ R-06 Scavenger collects Structural Scanner. 01737_ K-01 Serf collects debris. 01738_ R-06 Scavenger collects Corrupted Lgt. Assault Rifle. 01741_ ALERT: Hostiles spotted, dispatching reinforcements to Terminal M008. 01741_ K-01 Serf collects debris. 01742_ R-06 Scavenger collects Terrain Scanner. 01742_ Rnf. Ion Engine destroyed. 01755_ Destroyed Heat Sink. 01755_ Y-45 Defender system corrupted by crushing effect. 01757_ Actuator Array destroyed. 01768_ Y-45 Defender IFF system glitched. 01768_ Hammer destroyed. 01770_ Slammed into Y-45 Defender. 01771_ Destabilizing: System corrupted (+1). 01772_ Slammed into Y-45 Defender. Map ----- +----------------------------------------------------+ | ???????????????????# #=""" #?????############## | | ???????????????????# ########????# | | ???????????????????# #???????????# | | ????????????######## #???????????# | | ????????????# # #???????????# ######## | | ????????????# # ############# #??????# | | ????????????# # #??????# | | ????????????# + #??????# | | ????????????# # #??????# | | ????????????# ] ###### ######### #??????# | | ????????????# #????# k#??????????????????# | | ????????????# #????# #??????????????????# | | ????????????# #????# #??????????????????# | | ????????????# #????# #??????????????????# | | ????????????# #????# #??????????????????# | | ????????????# #????# #??????????????????# | | ????????????# #????# #??????????????????# | | ????????????########????# #???????? ???????# | | ????????????????????????# a#???????? +??????# | | ????????????????????????# #???????? #??????# | | ????????????????????????#% #???????# #??????# | | ????????????????????????# r#???????# #??????# % | | ????????????????????????# #???????# #??????# | | ????????????????????????#%=#???????# #??????# | | ???????????????????????##*=##??????# #??????# | | ????????????#+##+#######%@Y=#??????# #??????#### | | ?????????? % #??????# #?????????? | | ?????????? % +??????# #?????????? | | ????????????####+####### %% # ?????# #?????????? | | ???????????????????????############# #?????????? | | ??????????????????????????# # #?????????? | | ??????????????????????????# # #?????????? | | ??????????????????????????# + #?????????? | | ??????????????????????????# # #?????????? | | ??????????????????????????# # #?????????? | | ??????????????????????????# # #?????????? | | ??????????????????????????# #####?????????? | | ??????????????????????????# #?????????????? | | ??????????????????????????# #?????????????? | | ??????????????????????????#+#########????????????? | | ??????????????????????????# ##### !############## | | ??????????????????????????# | | ??????????????????????????####### ######### | | ????????????????????????????????#####???????# | | ????????????????????????????????????????????# | | ????????????????????????????????????????????# | | ????????????????????????????????????????????###### | | ?????????????????????????????????????????????????? | | ?????????????????????????????????????????????????? | | | +----------------------------------------------------+ Best States ------------- Heat Dissipation 31 Energy Generation 12 Energy Capacity 265 Matter Stores 300 Matter Capacity 300 Sight Range 16 Robot Scan Range 15 Terrain Scan Density 10 Evasion (%) 44 Targeting Accuracy 5 Melee Accuracy 5 Item Schematics ----------------- None Robot Schematics ------------------ None Fabricated ------------ Nothing Alien Tech Used ----------------- None Achievements -------------- None Challenges ------------ None Game ------ Seed IntegratedSniperInitializer Manual? 0 Play Time 00:26:57 Cumulative 10.3 hours Start 2024.04.17 @ 01:35:05 End 2024.04.17 @ 02:01:33 Sessions 1 Manual Loads 0 Difficulty Rogue Special Mode None Game No. 10 Rogue 10 Adventurer 0 Explorer 0 Win Type - Total 0 Types 0/0/0/0/0/0/0/0/0 Lore% 11 Gallery% 11 Achievement% 10 Wizard Run 0 Options --------- Layout 0 ASCII 1 Keyboard 1 Movement Vi Keybinds 0 Fullscreen 1 Font 20/SmallcapsGlow Map View 66x50 Zoom Use 0% Tactical HUD 1 Map Filters NONE Filters NONE Steam 1 RUN: d706871b-3b2f-4065-b48f-e8af418a693e